[Event "*** Titled Tuesday Blitz"]
[Site "Chess.com"]
[Date "2020.05.05"]
[Round "3"]
[White "tan275"]
[Black "Everyfishknows"]
[Result "0-1"]
[WhiteElo "2185"]
[BlackElo "2409"]
[TimeControl "180+1"]
[EndTime "10:30:46 PDT"]
[Termination "Everyfishknows won by resignation"]

1. d4 {[%clk 0:03:00.9]} 1... Nf6 {[%clk 0:02:58.6]} 2. c4 {[%clk 0:03:00.7]}
2... e6 {[%clk 0:02:51.7]} 3. g3 {[%clk 0:03:00.8]} 3... Bb4+ {[%clk 0:02:46.5]}
4. Bd2 {[%clk 0:03:00.1]} 4... Qe7 {[%clk 0:02:43.9]} 5. Nf3 {[%clk 0:02:58.9]}
5... Nc6 {[%clk 0:02:41.1]} 6. Bg2 {[%clk 0:02:57.5]} 6... Bxd2+ {[%clk
0:02:40.9]} 7. Qxd2 {[%clk 0:02:54.5]} 7... Ne4 {[%clk 0:02:39.4]} 8. Qc2 {[%clk
0:02:48.7]} 8... Qb4+ {[%clk 0:02:35]} 9. Nc3 {[%clk 0:02:38.5]} 9... Nxc3
{[%clk 0:02:34.2]} 10. Qxc3 {[%clk 0:02:38.2]} 10... Qxc3+ {[%clk 0:02:34.1]}
11. bxc3 {[%clk 0:02:39.1]} 11... O-O {[%clk 0:02:33.8]} 12. O-O {[%clk
0:02:39]} 12... d6 {[%clk 0:02:33.7]} 13. Nd2 {[%clk 0:02:33.6]} 13... Bd7
{[%clk 0:02:27.8]} 14. Rab1 {[%clk 0:02:21]} 14... Rab8 {[%clk 0:02:25.4]} 15.
Nb3 {[%clk 0:02:12.1]} 15... b6 {[%clk 0:02:23]} 16. c5 {[%clk 0:01:59.1]} 16...
dxc5 {[%clk 0:02:18.4]} 17. dxc5 {[%clk 0:01:58.8]} 17... Ne5 {[%clk 0:02:17.1]}
18. Rfd1 {[%clk 0:01:49.4]} 18... Rfd8 {[%clk 0:02:15.8]} 19. f4 {[%clk
0:01:37.1]} 19... Nc4 {[%clk 0:02:13.2]} 20. Rd4 {[%clk 0:01:24.6]} 20... Ne3
{[%clk 0:01:56.6]} 21. Rd3 {[%clk 0:01:00]} 21... Nxg2 {[%clk 0:01:44.2]} 22.
Rbd1 {[%clk 0:00:55.2]} 22... Ne3 {[%clk 0:01:28.9]} 23. Rxe3 {[%clk 0:00:54.7]}
23... Bb5 {[%clk 0:01:20.3]} 24. Rxd8+ {[%clk 0:00:53.5]} 24... Rxd8 {[%clk
0:01:21.1]} 25. Re5 {[%clk 0:00:43.8]} 25... Bc4 {[%clk 0:01:16.2]} 26. cxb6
{[%clk 0:00:32.7]} 26... axb6 {[%clk 0:01:15.8]} 27. Re4 {[%clk 0:00:22.2]}
27... b5 {[%clk 0:00:56.9]} 28. Rd4 {[%clk 0:00:18.4]} 28... Rxd4 {[%clk
0:00:54.6]} 29. cxd4 {[%clk 0:00:18.3]} 29... Kf8 {[%clk 0:00:47.2]} 30. Kf2
{[%clk 0:00:17.6]} 30... Ke7 {[%clk 0:00:46.2]} 31. e4 {[%clk 0:00:17.3]} 31...
f6 {[%clk 0:00:41.1]} 32. Ke3 {[%clk 0:00:17.5]} 32... Kd6 {[%clk 0:00:38.4]}
33. Kd2 {[%clk 0:00:16.6]} 33... e5 {[%clk 0:00:36.3]} 34. fxe5+ {[%clk
0:00:11.7]} 34... fxe5 {[%clk 0:00:37.2]} 35. d5 {[%clk 0:00:09.6]} 35... b4
{[%clk 0:00:20.4]} 36. Ke3 {[%clk 0:00:08.8]} 36... g5 {[%clk 0:00:15.6]} 37. h4
{[%clk 0:00:08]} 37... gxh4 {[%clk 0:00:15.4]} 38. gxh4 {[%clk 0:00:08.9]} 38...
h5 {[%clk 0:00:11.5]} 39. Kf3 {[%clk 0:00:08.3]} 39... c6 {[%clk 0:00:06.9]} 40.
dxc6 {[%clk 0:00:07.8]} 40... Kxc6 {[%clk 0:00:07.8]} 41. Ke3 {[%clk 0:00:07.8]}
41... Kb5 {[%clk 0:00:05.7]} 42. Kd2 {[%clk 0:00:06.9]} 42... Ka4 {[%clk
0:00:03.7]} 43. Kc2 {[%clk 0:00:06.5]} 43... Ka3 {[%clk 0:00:03.9]} 44. Nc1
{[%clk 0:00:05.9]} 44... Bxa2 {[%clk 0:00:04.2]} 45. Kd3 {[%clk 0:00:02.7]}
45... b3 {[%clk 0:00:03.8]} 46. Nxb3 {[%clk 0:00:02.1]} 46... Bxb3 {[%clk
0:00:04.7]} 47. Kc3 {[%clk 0:00:02]} 47... Ka4 {[%clk 0:00:05.3]} 48. Kd3 {[%clk
0:00:02.4]} 48... Kb4 {[%clk 0:00:05.9]} 49. Kd2 {[%clk 0:00:03.3]} 49... Kc4
{[%clk 0:00:06.2]} 50. Ke3 {[%clk 0:00:04.2]} 50... Bc2 {[%clk 0:00:06.6]} 51.
Kd2 {[%clk 0:00:05.1]} 51... Kd4 {[%clk 0:00:06.7]} 52. Kxc2 {[%clk 0:00:05]}
52... Kxe4 {[%clk 0:00:07.6]} 53. Kd2 {[%clk 0:00:05.9]} 53... Kf3 {[%clk
0:00:08.3]} 54. Kd3 {[%clk 0:00:05.9]} 54... e4+ {[%clk 0:00:08.5]} 55. Kd2
{[%clk 0:00:06.8]} 55... Kf2 {[%clk 0:00:09.1]} 56. Kc3 {[%clk 0:00:07.7]} 56...
e3 {[%clk 0:00:09.7]} 57. Kc4 {[%clk 0:00:08.6]} 57... e2 {[%clk 0:00:10.4]} 58.
Kc5 {[%clk 0:00:09.5]} 58... e1=Q {[%clk 0:00:11.2]} 59. Kc6 {[%clk 0:00:10.4]}
59... Kg3 {[%clk 0:00:11.9]} 60. Kc7 {[%clk 0:00:11.3]} 60... Qe6 {[%clk
0:00:12]} 61. Kb7 {[%clk 0:00:10.1]} 61... Kf4 {[%clk 0:00:11.5]} 0-1

[Event "*** Titled Tuesday Blitz"]
[Site "Chess.com"]
[Date "2020.05.05"]
[Round "3"]
[White "GuerrieroFromLevant"]
[Black "Pavlov_Sergey"]
[Result "0-1"]
[WhiteElo "2376"]
[BlackElo "2592"]
[TimeControl "180+1"]
[EndTime "10:30:47 PDT"]
[Termination "Pavlov_Sergey won by resignation"]

1. e4 {[%clk 0:03:00.9]} 1... Nf6 {[%clk 0:02:59.4]} 2. e5 {[%clk 0:03:00.9]}
2... Nd5 {[%clk 0:02:59.4]} 3. d4 {[%clk 0:03:01]} 3... d6 {[%clk 0:02:59.6]} 4.
Nf3 {[%clk 0:02:59.3]} 4... Bg4 {[%clk 0:02:59.1]} 5. Bc4 {[%clk 0:02:58]} 5...
dxe5 {[%clk 0:02:49.6]} 6. dxe5 {[%clk 0:02:57.4]} 6... e6 {[%clk 0:02:49.4]} 7.
O-O {[%clk 0:02:52.8]} 7... c6 {[%clk 0:02:49.4]} 8. Re1 {[%clk 0:02:48.9]} 8...
Nd7 {[%clk 0:02:48.9]} 9. b3 {[%clk 0:02:35.4]} 9... Bb4 {[%clk 0:02:35.2]} 10.
Bd2 {[%clk 0:02:33.5]} 10... Bxd2 {[%clk 0:02:18.7]} 11. Nbxd2 {[%clk 0:02:32]}
11... Nc3 {[%clk 0:02:14]} 12. Qc1 {[%clk 0:02:30.9]} 12... b5 {[%clk
0:02:08.3]} 13. Bd3 {[%clk 0:02:28.2]} 13... Nc5 {[%clk 0:02:04.3]} 14. Qb2
{[%clk 0:02:19.1]} 14... Nxd3 {[%clk 0:01:51.9]} 15. cxd3 {[%clk 0:02:20]} 15...
b4 {[%clk 0:01:52.2]} 16. d4 {[%clk 0:02:13.8]} 16... O-O {[%clk 0:01:47.5]} 17.
Rac1 {[%clk 0:02:08.5]} 17... c5 {[%clk 0:01:38]} 18. dxc5 {[%clk 0:01:59.5]}
18... Qd5 {[%clk 0:01:37.3]} 19. h3 {[%clk 0:01:51.4]} 19... Bh5 {[%clk
0:01:30.7]} 20. Re3 {[%clk 0:01:38.7]} 20... Rfd8 {[%clk 0:01:22.9]} 21. Rcxc3
{[%clk 0:01:28.6]} 21... bxc3 {[%clk 0:01:20]} 22. Rxc3 {[%clk 0:01:29.5]} 22...
Rdc8 {[%clk 0:01:09.8]} 23. b4 {[%clk 0:01:21.1]} 23... a5 {[%clk 0:01:09.8]}
24. a3 {[%clk 0:01:21.4]} 24... axb4 {[%clk 0:01:09.9]} 25. axb4 {[%clk
0:01:22.3]} 25... Ra2 {[%clk 0:00:58.3]} 26. Qb3 {[%clk 0:00:58.1]} 26... Rxd2
{[%clk 0:00:44.1]} 27. Nxd2 {[%clk 0:00:57.4]} 27... Qxd2 {[%clk 0:00:44.5]} 28.
Rc2 {[%clk 0:00:37]} 28... Qe1+ {[%clk 0:00:41.7]} 29. Kh2 {[%clk 0:00:37.1]}
29... Qxe5+ {[%clk 0:00:34.9]} 30. Qg3 {[%clk 0:00:35.3]} 30... Qxg3+ {[%clk
0:00:30.3]} 31. Kxg3 {[%clk 0:00:34]} 31... Kf8 {[%clk 0:00:30.5]} 32. b5 {[%clk
0:00:32.2]} 32... Ke7 {[%clk 0:00:30.6]} 33. c6 {[%clk 0:00:26.1]} 33... Kd6
{[%clk 0:00:25.7]} 34. f4 {[%clk 0:00:24.3]} 34... Kc7 {[%clk 0:00:23.7]} 35. f5
{[%clk 0:00:17.1]} 35... exf5 {[%clk 0:00:22.1]} 36. Kf4 {[%clk 0:00:17.5]}
36... Kb6 {[%clk 0:00:20.3]} 37. Rb2 {[%clk 0:00:17.7]} 37... Bg6 {[%clk
0:00:19.3]} 38. h4 {[%clk 0:00:16.3]} 38... f6 {[%clk 0:00:19]} 39. g3 {[%clk
0:00:15.1]} 39... Re8 {[%clk 0:00:18.5]} 40. Kf3 {[%clk 0:00:14.6]} 40... Bh5+
{[%clk 0:00:16]} 41. Kf2 {[%clk 0:00:14.9]} 41... Bg4 {[%clk 0:00:15.4]} 42. Rd2
{[%clk 0:00:13.7]} 42... Kxb5 {[%clk 0:00:14.7]} 43. c7 {[%clk 0:00:14.3]} 43...
Rc8 {[%clk 0:00:14.4]} 44. Rd7 {[%clk 0:00:14.7]} 44... g5 {[%clk 0:00:14.3]}
45. hxg5 {[%clk 0:00:14.5]} 45... fxg5 {[%clk 0:00:14.2]} 46. Rxh7 {[%clk
0:00:14.8]} 46... Kc6 {[%clk 0:00:14.6]} 47. Rg7 {[%clk 0:00:15.4]} 47... Rxc7
{[%clk 0:00:14.8]} 48. Rxg5 {[%clk 0:00:16.3]} 48... Re7 {[%clk 0:00:14.5]} 49.
Rg6+ {[%clk 0:00:16.1]} 49... Kd5 {[%clk 0:00:14.7]} 50. Ra6 {[%clk 0:00:16.8]}
50... Ke5 {[%clk 0:00:14.4]} 51. Ra5+ {[%clk 0:00:17.3]} 51... Kf6 {[%clk
0:00:14.6]} 52. Ra8 {[%clk 0:00:17.6]} 52... Re2+ {[%clk 0:00:13.5]} 53. Kf1
{[%clk 0:00:18.1]} 53... Rc2 {[%clk 0:00:13.4]} 54. Rf8+ {[%clk 0:00:17.7]}
54... Ke5 {[%clk 0:00:13.4]} 55. Re8+ {[%clk 0:00:18.2]} 55... Kd5 {[%clk
0:00:13.6]} 56. Kg1 {[%clk 0:00:18.6]} 56... Kd4 {[%clk 0:00:13.5]} 57. Kf1
{[%clk 0:00:18.1]} 57... Kd3 {[%clk 0:00:13.4]} 58. Kg1 {[%clk 0:00:18.2]} 58...
Re2 {[%clk 0:00:13.2]} 59. Ra8 {[%clk 0:00:15.5]} 59... Ke4 {[%clk 0:00:12.1]}
60. Ra3 {[%clk 0:00:11.9]} 60... Re3 {[%clk 0:00:11.6]} 61. Rxe3+ {[%clk
0:00:10.7]} 61... Kxe3 {[%clk 0:00:11.6]} 62. Kg2 {[%clk 0:00:10.6]} 62... Ke2
{[%clk 0:00:11.7]} 63. Kg1 {[%clk 0:00:10.6]} 63... Kf3 {[%clk 0:00:11.6]} 64.
Kh2 {[%clk 0:00:11.2]} 64... Kf2 {[%clk 0:00:12.1]} 65. Kh1 {[%clk 0:00:11.8]}
65... Kxg3 {[%clk 0:00:12.4]} 66. Kg1 {[%clk 0:00:12.5]} 66... f4 {[%clk
0:00:12.8]} 67. Kf1 {[%clk 0:00:12.9]} 67... f3 {[%clk 0:00:13]} 68. Kg1 {[%clk
0:00:13.8]} 68... f2+ {[%clk 0:00:12.7]} 69. Kf1 {[%clk 0:00:13.9]} 69... Bh3+
{[%clk 0:00:12.8]} 0-1

[Event "*** Titled Tuesday Blitz"]
[Site "Chess.com"]
[Date "2020.05.05"]
[Round "3"]
[White "enriquetejedor"]
[Black "Wolverine_master"]
[Result "1-0"]
[WhiteElo "2479"]
[BlackElo "2208"]
[TimeControl "180+1"]
[EndTime "10:30:50 PDT"]
[Termination "enriquetejedor won by resignation"]

1. e4 {[%clk 0:02:48.1]} 1... c5 {[%clk 0:02:59.2]} 2. Nf3 {[%clk 0:02:34.2]}
2... g6 {[%clk 0:02:59.2]} 3. d4 {[%clk 0:02:30.2]} 3... cxd4 {[%clk 0:03:00.1]}
4. Qxd4 {[%clk 0:02:29.5]} 4... Nf6 {[%clk 0:02:59]} 5. Nc3 {[%clk 0:02:06.6]}
5... Nc6 {[%clk 0:02:58.1]} 6. Qa4 {[%clk 0:01:46.9]} 6... Bg7 {[%clk
0:02:51.1]} 7. e5 {[%clk 0:01:19.5]} 7... Ng8 {[%clk 0:02:49.1]} 8. Bf4 {[%clk
0:01:19.6]} 8... Nh6 {[%clk 0:02:47.9]} 9. h3 {[%clk 0:01:05.5]} 9... O-O {[%clk
0:02:46]} 10. O-O-O {[%clk 0:00:57.3]} 10... b6 {[%clk 0:01:40.9]} 11. g4 {[%clk
0:00:31.4]} 11... Bb7 {[%clk 0:01:39]} 12. Bg2 {[%clk 0:00:31]} 12... Na5 {[%clk
0:01:31.3]} 13. Rxd7 {[%clk 0:00:22.5]} 13... Qe8 {[%clk 0:01:03.6]} 14. Rdd1
{[%clk 0:00:11.4]} 14... Bc6 {[%clk 0:00:52.2]} 15. Qd4 {[%clk 0:00:06.3]} 15...
Rd8 {[%clk 0:00:44.9]} 16. Qxd8 {[%clk 0:00:04.7]} 16... Qxd8 {[%clk 0:00:45.8]}
17. Rxd8 {[%clk 0:00:05]} 17... Rxd8 {[%clk 0:00:46.7]} 18. Rd1 {[%clk
0:00:05.7]} 18... Rc8 {[%clk 0:00:46.6]} 19. Ne1 {[%clk 0:00:04.7]} 19... Bxg2
{[%clk 0:00:42.5]} 20. Nxg2 {[%clk 0:00:05.6]} 20... Nc4 {[%clk 0:00:35.6]} 21.
Re1 {[%clk 0:00:04.8]} 21... e6 {[%clk 0:00:34.2]} 22. Nd1 {[%clk 0:00:03.1]}
22... Kh8 {[%clk 0:00:25.6]} 23. Bg3 {[%clk 0:00:03.4]} 23... Ng8 {[%clk
0:00:25.3]} 24. b3 {[%clk 0:00:02.6]} 24... Na5 {[%clk 0:00:21.3]} 25. Re2
{[%clk 0:00:03.5]} 25... Ne7 {[%clk 0:00:20.5]} 26. Nge3 {[%clk 0:00:03.2]}
26... Bf8 {[%clk 0:00:20.7]} 27. Nb2 {[%clk 0:00:03.5]} 27... Nac6 {[%clk
0:00:16.9]} 28. Nec4 {[%clk 0:00:03.3]} 28... Nd4 {[%clk 0:00:16]} 29. Rd2
{[%clk 0:00:03.6]} 29... Nec6 {[%clk 0:00:15.9]} 30. c3 {[%clk 0:00:03.5]} 30...
Nb5 {[%clk 0:00:15.1]} 31. Kc2 {[%clk 0:00:03.1]} 31... Bh6 {[%clk 0:00:10.9]}
32. Rd3 {[%clk 0:00:02]} 32... Bg7 {[%clk 0:00:10.3]} 33. f4 {[%clk 0:00:02.3]}
33... Nc7 {[%clk 0:00:09.8]} 34. g5 {[%clk 0:00:02.4]} 34... Nd5 {[%clk
0:00:10]} 35. Nd1 {[%clk 0:00:02.8]} 35... Bf8 {[%clk 0:00:10.3]} 36. Kd2 {[%clk
0:00:02.9]} 36... b5 {[%clk 0:00:09.5]} 37. Nce3 {[%clk 0:00:03.4]} 37... b4
{[%clk 0:00:08.6]} 38. Nxd5 {[%clk 0:00:03.4]} 38... exd5 {[%clk 0:00:09.5]} 39.
Rxd5 {[%clk 0:00:03.6]} 39... bxc3+ {[%clk 0:00:09.8]} 40. Nxc3 {[%clk
0:00:04.5]} 40... Bb4 {[%clk 0:00:07.7]} 41. Rd3 {[%clk 0:00:05]} 41... Ne7
{[%clk 0:00:04.4]} 42. Be1 {[%clk 0:00:02.4]} 42... Nd5 {[%clk 0:00:04.2]} 43.
Rxd5 {[%clk 0:00:02.4]} 43... Bxc3+ {[%clk 0:00:03.6]} 44. Ke2 {[%clk
0:00:02.8]} 44... Bxe1 {[%clk 0:00:04.5]} 45. Kxe1 {[%clk 0:00:03.5]} 45... Rc2
{[%clk 0:00:04.9]} 46. Rd8+ {[%clk 0:00:03.2]} 46... Kg7 {[%clk 0:00:04.7]} 47.
Rd2 {[%clk 0:00:04.1]} 47... Rc1+ {[%clk 0:00:04.7]} 48. Kf2 {[%clk 0:00:04.2]}
48... Rh1 {[%clk 0:00:05.6]} 49. Kg2 {[%clk 0:00:04.6]} 49... Rc1 {[%clk
0:00:04.9]} 50. Rf2 {[%clk 0:00:04.8]} 50... Kf8 {[%clk 0:00:01.9]} 51. h4
{[%clk 0:00:05.3]} 51... Ke7 {[%clk 0:00:02.8]} 52. f5 {[%clk 0:00:05.4]} 52...
gxf5 {[%clk 0:00:02.7]} 53. Rxf5 {[%clk 0:00:06.3]} 53... Ke6 {[%clk 0:00:03.6]}
54. Rf6+ {[%clk 0:00:06.7]} 54... Kxe5 {[%clk 0:00:04.5]} 55. Rxf7 {[%clk
0:00:07]} 55... Rc2+ {[%clk 0:00:05.1]} 56. Kg3 {[%clk 0:00:07.4]} 56... Rxa2
{[%clk 0:00:06]} 57. Rxh7 {[%clk 0:00:07.4]} 57... Kf5 {[%clk 0:00:06.9]} 58.
Rb7 {[%clk 0:00:07.7]} 58... Ra3 {[%clk 0:00:07.8]} 59. Rf7+ {[%clk 0:00:08.2]}
59... Kg6 {[%clk 0:00:08.5]} 60. Rf3 {[%clk 0:00:08.9]} 60... Kh5 {[%clk
0:00:09.1]} 61. Kh3 {[%clk 0:00:08.4]} 61... a5 {[%clk 0:00:10]} 62. Rg3 {[%clk
0:00:08.7]} 62... a4 {[%clk 0:00:10.9]} 63. g6 {[%clk 0:00:08.1]} 63... axb3
{[%clk 0:00:10.8]} 64. g7 {[%clk 0:00:08.3]} 64... Ra8 {[%clk 0:00:10.8]} 65.
g8=Q {[%clk 0:00:08.7]} 65... Rxg8 {[%clk 0:00:11.7]} 66. Rxg8 {[%clk
0:00:08.9]} 66... b2 {[%clk 0:00:12.6]} 67. Rb8 {[%clk 0:00:09.1]} 67... b1=Q
{[%clk 0:00:13.5]} 68. Rxb1 {[%clk 0:00:09.2]} 68... Kh6 {[%clk 0:00:13.9]} 69.
Rg1 {[%clk 0:00:09.4]} 69... Kh5 {[%clk 0:00:14.8]} 70. Rg5+ {[%clk 0:00:08.8]}
70... Kh6 {[%clk 0:00:15.7]} 71. Kg4 {[%clk 0:00:09.7]} 71... Kh7 {[%clk
0:00:15.9]} 72. h5 {[%clk 0:00:10.6]} 1-0

[Event "*** Titled Tuesday Blitz"]
[Site "Chess.com"]
[Date "2020.05.05"]
[Round "3"]
[White "leopato"]
[Black "Boliviar"]
[Result "0-1"]
[WhiteElo "2061"]
[BlackElo "2318"]
[TimeControl "180+1"]
[EndTime "10:30:51 PDT"]
[Termination "Boliviar won by resignation"]

1. e4 {[%clk 0:03:00.9]} 1... c5 {[%clk 0:02:59.4]} 2. Nf3 {[%clk 0:03:01.2]}
2... Nc6 {[%clk 0:02:59.7]} 3. d4 {[%clk 0:03:01.1]} 3... cxd4 {[%clk
0:03:00.6]} 4. Nxd4 {[%clk 0:03:00.4]} 4... g6 {[%clk 0:03:00.4]} 5. Nc3 {[%clk
0:03:00.1]} 5... Bg7 {[%clk 0:02:58.1]} 6. Be3 {[%clk 0:03:00.1]} 6... Nf6
{[%clk 0:02:56.9]} 7. Bc4 {[%clk 0:02:57.9]} 7... O-O {[%clk 0:02:54.5]} 8. O-O
{[%clk 0:02:55.8]} 8... Nxe4 {[%clk 0:02:54.2]} 9. Nxe4 {[%clk 0:02:50.8]} 9...
d5 {[%clk 0:02:53.5]} 10. Bb5 {[%clk 0:02:50.3]} 10... Nxd4 {[%clk 0:02:39]} 11.
Bxd4 {[%clk 0:02:49.6]} 11... dxe4 {[%clk 0:02:28.6]} 12. Bxg7 {[%clk
0:02:48.3]} 12... Qxd1 {[%clk 0:02:22.4]} 13. Raxd1 {[%clk 0:02:44.6]} 13...
Kxg7 {[%clk 0:02:22.8]} 14. Rfe1 {[%clk 0:02:39.8]} 14... Bf5 {[%clk 0:02:20.1]}
15. h3 {[%clk 0:02:31.4]} 15... h5 {[%clk 0:02:18.6]} 16. Rd4 {[%clk 0:02:19.7]}
16... Rac8 {[%clk 0:02:10.9]} 17. c3 {[%clk 0:02:18.5]} 17... Rc5 {[%clk
0:02:07.3]} 18. Be2 {[%clk 0:02:13.8]} 18... e5 {[%clk 0:01:31]} 19. Rb4 {[%clk
0:02:08.6]} 19... b6 {[%clk 0:01:29.5]} 20. g4 {[%clk 0:02:06.2]} 20... hxg4
{[%clk 0:01:28.5]} 21. hxg4 {[%clk 0:02:07.1]} 21... Be6 {[%clk 0:01:23.7]} 22.
Rxe4 {[%clk 0:02:05.2]} 22... Rd8 {[%clk 0:01:18.2]} 23. Rd1 {[%clk 0:01:55.9]}
23... Rxd1+ {[%clk 0:01:03.8]} 24. Bxd1 {[%clk 0:01:56.8]} 24... Bxa2 {[%clk
0:00:56.9]} 25. Ra4 {[%clk 0:01:54.8]} 25... Ra5 {[%clk 0:00:56]} 26. Rxa5
{[%clk 0:01:54.3]} 26... bxa5 {[%clk 0:00:56.9]} 27. Kf1 {[%clk 0:01:47]} 27...
Bc4+ {[%clk 0:00:54.2]} 28. Ke1 {[%clk 0:01:47.2]} 28... f5 {[%clk 0:00:54.3]}
29. Kd2 {[%clk 0:01:46.8]} 29... Kf6 {[%clk 0:00:49.5]} 30. Ke3 {[%clk 0:01:33]}
30... Kg5 {[%clk 0:00:45.3]} 31. gxf5 {[%clk 0:01:27.1]} 31... gxf5 {[%clk
0:00:46.2]} 32. b3 {[%clk 0:01:15.5]} 32... Bd5 {[%clk 0:00:43]} 33. c4 {[%clk
0:01:12.2]} 33... Bc6 {[%clk 0:00:42.1]} 34. Bf3 {[%clk 0:01:07.6]} 34... e4
{[%clk 0:00:41.7]} 35. Be2 {[%clk 0:00:57.5]} 35... f4+ {[%clk 0:00:37.6]} 36.
Kd4 {[%clk 0:00:57.6]} 36... f3 {[%clk 0:00:34.1]} 37. Bf1 {[%clk 0:00:53.6]}
37... Kf4 {[%clk 0:00:34.3]} 38. Kc5 {[%clk 0:00:47.2]} 38... Be8 {[%clk
0:00:32.7]} 39. Kd6 {[%clk 0:00:43.7]} 39... a4 {[%clk 0:00:32.6]} 40. bxa4
{[%clk 0:00:42.8]} 40... Bxa4 {[%clk 0:00:32.2]} 41. Kc7 {[%clk 0:00:38.6]}
41... Bd1 {[%clk 0:00:21.5]} 42. c5 {[%clk 0:00:37.5]} 42... Be2 {[%clk
0:00:21.5]} 43. Bh3 {[%clk 0:00:37.1]} 43... e3 {[%clk 0:00:15]} 44. fxe3+
{[%clk 0:00:35.7]} 44... Kxe3 {[%clk 0:00:14.3]} 45. c6 {[%clk 0:00:33.1]} 45...
f2 {[%clk 0:00:10.3]} 46. Kb8 {[%clk 0:00:29.9]} 46... a5 {[%clk 0:00:08.5]} 47.
c7 {[%clk 0:00:29.4]} 47... Ba6 {[%clk 0:00:06.9]} 48. Ka7 {[%clk 0:00:28.3]}
48... Bc8 {[%clk 0:00:06.8]} 49. Bf1 {[%clk 0:00:24.5]} 49... a4 {[%clk
0:00:06.4]} 50. Kb6 {[%clk 0:00:18.8]} 50... a3 {[%clk 0:00:06.1]} 51. Bc4
{[%clk 0:00:17.4]} 51... a2 {[%clk 0:00:04.9]} 52. Bxa2 {[%clk 0:00:16.5]} 52...
f1=Q {[%clk 0:00:05.2]} 53. Bd5 {[%clk 0:00:16.3]} 53... Qh3 {[%clk 0:00:04.6]}
54. Kc5 {[%clk 0:00:16]} 54... Qd7 {[%clk 0:00:04.6]} 55. Bc6 {[%clk 0:00:16.9]}
55... Qxc7 {[%clk 0:00:04.8]} 56. Kb5 {[%clk 0:00:17.4]} 56... Bb7 {[%clk
0:00:05.5]} 57. Kc5 {[%clk 0:00:17.9]} 57... Bxc6 {[%clk 0:00:05.4]} 58. Kb4
{[%clk 0:00:18.8]} 58... Bb7 {[%clk 0:00:06.1]} 59. Kb5 {[%clk 0:00:18.5]} 59...
Qc6+ {[%clk 0:00:07]} 60. Kb4 {[%clk 0:00:18.1]} 60... Kd4 {[%clk 0:00:07.1]}
61. Kb3 {[%clk 0:00:17.8]} 61... Qc4+ {[%clk 0:00:06.7]} 62. Kb2 {[%clk
0:00:18.7]} 62... Bd5 {[%clk 0:00:07.3]} 63. Kb1 {[%clk 0:00:18.8]} 63... Qd3+
{[%clk 0:00:06.9]} 64. Kc1 {[%clk 0:00:19.7]} 64... Qe2 {[%clk 0:00:06.3]} 65.
Kb1 {[%clk 0:00:18.9]} 65... Be4+ {[%clk 0:00:06.5]} 66. Ka1 {[%clk 0:00:18.4]}
66... Bd5 {[%clk 0:00:06.8]} 67. Kb1 {[%clk 0:00:17.8]} 67... Kc3 {[%clk
0:00:07.2]} 0-1

[Event "*** Titled Tuesday Blitz"]
[Site "Chess.com"]
[Date "2020.05.05"]
[Round "3"]
[White "PaulfromSPb"]
[Black "GukeshDommaraju"]
[Result "0-1"]
[WhiteElo "2599"]
[BlackElo "2798"]
[TimeControl "180+1"]
[EndTime "10:30:53 PDT"]
[Termination "GukeshDommaraju won by checkmate"]

1. e4 {[%clk 0:02:59.3]} 1... c5 {[%clk 0:02:59.8]} 2. Ne2 {[%clk 0:02:59]} 2...
Nc6 {[%clk 0:02:58]} 3. d4 {[%clk 0:02:57.3]} 3... cxd4 {[%clk 0:02:57.9]} 4.
Nxd4 {[%clk 0:02:58.2]} 4... Nf6 {[%clk 0:02:58.2]} 5. Nc3 {[%clk 0:02:58.1]}
5... e5 {[%clk 0:02:58.5]} 6. Ndb5 {[%clk 0:02:56.4]} 6... d6 {[%clk 0:02:58.7]}
7. Bg5 {[%clk 0:02:52.5]} 7... a6 {[%clk 0:02:58.4]} 8. Na3 {[%clk 0:02:52.5]}
8... b5 {[%clk 0:02:58.7]} 9. Nd5 {[%clk 0:02:52.7]} 9... Be7 {[%clk 0:02:58.2]}
10. Bxf6 {[%clk 0:02:52.8]} 10... Bxf6 {[%clk 0:02:58.6]} 11. c4 {[%clk
0:02:53.4]} 11... b4 {[%clk 0:02:58.2]} 12. Nc2 {[%clk 0:02:53.2]} 12... O-O
{[%clk 0:02:58.3]} 13. g3 {[%clk 0:02:52.6]} 13... a5 {[%clk 0:02:57.2]} 14. b3
{[%clk 0:02:51.6]} 14... Bg5 {[%clk 0:02:56.5]} 15. h4 {[%clk 0:02:50.8]} 15...
Bh6 {[%clk 0:02:56]} 16. Bh3 {[%clk 0:02:50.9]} 16... Be6 {[%clk 0:02:55]} 17.
Kf1 {[%clk 0:02:50.4]} 17... Nb8 {[%clk 0:02:47.7]} 18. Kg2 {[%clk 0:02:48.9]}
18... Na6 {[%clk 0:02:44.8]} 19. Qe2 {[%clk 0:02:32.9]} 19... Nc5 {[%clk
0:02:42.5]} 20. Rad1 {[%clk 0:02:32.1]} 20... Rb8 {[%clk 0:02:35.1]} 21. f3
{[%clk 0:02:18.6]} 21... Qd7 {[%clk 0:02:09.6]} 22. Nce3 {[%clk 0:02:01.9]}
22... Bxe3 {[%clk 0:01:58.7]} 23. Qxe3 {[%clk 0:02:02.8]} 23... a4 {[%clk
0:01:44.5]} 24. Rd2 {[%clk 0:01:56.2]} 24... axb3 {[%clk 0:01:43.4]} 25. axb3
{[%clk 0:01:57.1]} 25... Qb7 {[%clk 0:01:33.3]} 26. Ra2 {[%clk 0:01:47.6]} 26...
Bxh3+ {[%clk 0:01:23.8]} 27. Kxh3 {[%clk 0:01:45.9]} 27... Ra8 {[%clk
0:01:03.6]} 28. Rha1 {[%clk 0:01:44.7]} 28... h6 {[%clk 0:00:52.6]} 29. g4
{[%clk 0:01:40.5]} 29... Rxa2 {[%clk 0:00:46.5]} 30. Rxa2 {[%clk 0:01:39.9]}
30... Ra8 {[%clk 0:00:47]} 31. Rxa8+ {[%clk 0:01:25.9]} 31... Qxa8 {[%clk
0:00:47.1]} 32. Nxb4 {[%clk 0:01:25.9]} 32... Qa3 {[%clk 0:00:47]} 33. Nd5
{[%clk 0:01:21.9]} 33... Nxb3 {[%clk 0:00:32.9]} 34. Ne7+ {[%clk 0:01:16]} 34...
Kh7 {[%clk 0:00:31.6]} 35. Nf5 {[%clk 0:01:15.3]} 35... Qa2 {[%clk 0:00:17]} 36.
h5 {[%clk 0:00:54.6]} 36... Nd2 {[%clk 0:00:16.3]} 37. Qe2 {[%clk 0:00:48.9]}
37... Qc2 {[%clk 0:00:16.5]} 38. Nxd6 {[%clk 0:00:41]} 38... Qc1 {[%clk
0:00:16.6]} 39. Kg2 {[%clk 0:00:40.5]} 39... Nb1 {[%clk 0:00:09.5]} 40. Nf5
{[%clk 0:00:35.6]} 40... Nc3 {[%clk 0:00:09.8]} 41. Qf2 {[%clk 0:00:33.3]} 41...
Nd1 {[%clk 0:00:10.1]} 42. Qf1 {[%clk 0:00:29.9]} 42... Qd2+ {[%clk 0:00:10.3]}
43. Kh3 {[%clk 0:00:28]} 43... Nf2+ {[%clk 0:00:09.5]} 44. Kg3 {[%clk
0:00:27.8]} 44... Nd3 {[%clk 0:00:08.6]} 45. Qg2 {[%clk 0:00:19.8]} 45... Qe1+
{[%clk 0:00:05.4]} 46. Kh2 {[%clk 0:00:18.1]} 46... Nf4 {[%clk 0:00:06.2]} 47.
Qg3 {[%clk 0:00:16]} 47... Qe2+ {[%clk 0:00:06.3]} 48. Kh1 {[%clk 0:00:16]}
48... Qd1+ {[%clk 0:00:06.8]} 49. Kh2 {[%clk 0:00:16]} 49... Qf1 {[%clk
0:00:06.5]} 50. c5 {[%clk 0:00:12.9]} 50... Qe2+ {[%clk 0:00:06.7]} 51. Kh1
{[%clk 0:00:12.5]} 51... Qd1+ {[%clk 0:00:06.9]} 52. Kh2 {[%clk 0:00:12.8]}
52... Qc2+ {[%clk 0:00:07.3]} 53. Kh1 {[%clk 0:00:13]} 53... Qxc5 {[%clk
0:00:07.5]} 54. Nh4 {[%clk 0:00:13.4]} 54... Qc1+ {[%clk 0:00:07.3]} 55. Kh2
{[%clk 0:00:13.5]} 55... Qd2+ {[%clk 0:00:07.7]} 56. Ng2 {[%clk 0:00:12.7]}
56... Qe2 {[%clk 0:00:05.6]} 57. Kh1 {[%clk 0:00:12.1]} 57... Qf1+ {[%clk
0:00:05.8]} 58. Kh2 {[%clk 0:00:12.1]} 58... Ne2 {[%clk 0:00:06.1]} 59. Qe1
{[%clk 0:00:12.2]} 59... Qxf3 {[%clk 0:00:05.1]} 60. Qd1 {[%clk 0:00:02.7]}
60... Qg3+ {[%clk 0:00:04.9]} 61. Kh1 {[%clk 0:00:02.8]} 61... Qh3# {[%clk
0:00:05.8]} 0-1